Cogmind - Beta 10.2 @@@ ROGUE MODE // 2021.02.14 @ 19:22:20 Player: Cookedpoo Result: Self-destructed Performance ------------- Evolutions (0) 0 Regions Visited (4) 800 Robots Destroyed (30) 150 Value Destroyed (676) 676 Prototype IDs (0) 0 Alien Tech Used (0) 0 Bonus (16) 16 TOTAL SCORE: 1642 Bonus ------- High Alert Combat Kills 16 Cogmind --------- Core Integrity 111/250 Matter 300/300 Energy 250/250 System Corruption 0% Temperature Cool (0) Movement Rolling (130) Ox5 Location -9/Mines Parts ------- > --- POWER (1) -------- Ion Engine > --- PROPULSION (2) --- Light Treads Wheel > --- UTILITY (2) ------ Large Storage Unit High-capacity Storage Unit > --- WEAPON (2) ------- EM Shotgun > --- INVENTORY (18) --- Light Fission Core Improved Terrain Scanner Terrain Scan Processor Bomb Drone Bay EM Shotgun EM Shotgun EM Shotgun EM Shotgun Light EM Pulse Cannon Light EM Pulse Cannon Light EM Pulse Cannon Light EM Pulse Cannon Light EM Pulse Cannon Light EM Pulse Cannon Light EM Pulse Cannon Light EM Pulse Cannon Rocket Launcher Peak State ------------ > --- POWER ------------ Ion Engine > --- PROPULSION ------- Light Treads Wheel > --- UTILITY ---------- Large Storage Unit High-capacity Storage Unit > --- WEAPON ----------- EM Shotgun EM Shotgun > --- INVENTORY -------- Reinforced Deuterium Engine Light Fission Core Improved Terrain Scanner Terrain Scan Processor EM Shotgun EM Shotgun EM Shotgun EM Shotgun Light EM Pulse Cannon Light EM Pulse Cannon Light EM Pulse Cannon Light EM Pulse Cannon Light EM Pulse Cannon Light EM Pulse Cannon Light EM Pulse Cannon Light EM Pulse Cannon Grenade Launcher Rocket Launcher [Rating: 13] Favorites ----------- Power Ion Engine Engine Ion Engine Propulsion Light Treads Treads Light Treads Wheel Wheel Utility Large Storage Unit Storage Large Storage Unit Weapon EM Shotgun Energy Gun EM Shotgun Build | -11 -10 -10 -10 -9 ------- Run | Scr Mat Min Exi Min Slots Evolved . | . . . . . Power . | . . . . . Propulsion . | . . . . . Utility . | . . . . . Weapon . | . . . . . Parts Attached 19 | 6 11 1 1 . Power 3 | 1 1 1 . . Engine 3 | 1 1 1 . . Core . | . . . . . Reactor . | . . . . . Propulsion 6 | 2 4 . . . Treads 2 | 1 1 . . . Leg . | . . . . . Wheel 4 | 1 3 . . . Hover . | . . . . . Flight . | . . . . . Utility 4 | 1 2 . 1 . Device . | . . . . . Storage 4 | 1 2 . 1 . Processor . | . . . . . Hackware . | . . . . . Protection . | . . . . . Artifact . | . . . . . Weapon 6 | 2 4 . . . Energy Gun 6 | 2 4 . . . Energy Cannon . | . . . . . Ballistic Gun . | . . . . . Ballistic Cannon . | . . . . . Launcher . | . . . . . Special Weapon . | . . . . . Impact Weapon . | . . . . . Slashing Weapon . | . . . . . Piercing Weapon . | . . . . . Special Melee Weapon . | . . . . . Unidentified Prototypes . | . . . . . Parts Lost 3 | . 2 . . 1 Power . | . . . . . Propulsion . | . . . . . Utility . | . . . . . Weapon 3 | . 2 . . 1 Highest Loss Streak 2 | . 2 . . 1 Average Slot Usage (%) 96 | . 93 100 100 100 Engine 13 | . 13 14 14 14 Treads 14 | . 14 14 14 14 Wheel 14 | . 14 14 14 14 Storage 25 | . 22 28 28 28 Energy Gun 27 | . 27 28 28 28 Naked Turns . | . . . . . Heaviest Build 59 | 13 43 43 59 59 Greatest Support 16 | 10 16 10 10 10 Greatest Overweight (x) 5 | 2 4 4 5 5 Average Overweight (x) 3 | 1 2 4 4 5 Largest Inventory Capacity 18 | 6 16 16 18 18 Average Capacity 14 | 4 11 16 17 18 Most Carried 18 | 6 16 16 18 18 Average Carried 13 | 2 10 15 17 17 Final Capacity 18 | 6 16 16 18 18 Final Carried 18 | 5 16 16 18 18 Class Distribution -------------------- 100% | Mutant Dominant Class ---------------- Mutant | -10/Materials Mutant | -10/Mines Mutant | -10/Exiles Mutant | -9/Mines Resources | -11 -10 -10 -10 -9 ----------- Run | Scr Mat Min Exi Min Matter Collected 580 | 260 300 10 10 . Remotely . | . . . . . Salvage Created 1142 | 65 882 195 . . Parts 52 | 2 43 7 . . Haulers Intercepted 2 | . 2 . . . Recyclers Shooed 2 | . 1 1 . . Parts Field Recycled . | . . . . . Retrieved Matter . | . . . . . Parts Self-Destructed . | . . . . . Prevented . | . . . . . Kills | -11 -10 -10 -10 -9 ------- Run | Scr Mat Min Exi Min Combat Hostiles Destroyed 20 | . 18 2 . . Guns 16 | . 14 2 . . AOE 3 | . 3 . . . Classes Destroyed 8 | 1 7 . . . Worker 1 | . 1 . . . Hauler 2 | . 2 . . . Recycler 2 | 1 . 1 . . Mechanic 1 | . 1 . . . Operator 2 | . 2 . . . Watcher 2 | . 2 . . . Swarmer 6 | . 6 . . . Grunt 14 | . 12 2 . . Best Kill Streak 4 | 1 4 3 . . Combat Bots Only 4 | . 4 2 . . Max Kills in Single Turn 2 | 1 2 1 . . Gunslinging . | . . . . . Exploded 2 | . 2 . . . Melee . | . . . . . Uniques/NPCs Destroyed . | . . . . . Combat | -11 -10 -10 -10 -9 -------- Run | Scr Mat Min Exi Min Damage Taken 592 | . 484 48 . 60 Core 139 | . 103 27 . 9 Absorbed by Shields . | . . . . . Core Remaining (%) 100 | 100 . . . . Volleys Fired 68 | 1 59 8 . . Largest 2 | 2 2 2 . . Hottest 100 | 100 100 90 . . Shots Fired 132 | 2 114 16 . . Gun 132 | 2 114 16 . . Cannon . | . . . . . Launcher . | . . . . . Special . | . . . . . Kinetic . | . . . . . Thermal 40 | 2 38 . . . Explosive . | . . . . . Electromagnetic 92 | . 76 16 . . Robot Hit Streak 10 | 2 10 10 . . Robot Miss Streak 5 | . 5 2 . . Penetration Max . | . . . . . Secondary Targets 3 | . 3 . . . Max Gunslinging Chain 1 | . 1 . . . Shots Hit Robots 93 | 2 78 13 . . Core Hits 51 | 2 42 7 . . Critical Hits . | . . . . . Critical Kills . | . . . . . Critical Parts Destroyed . | . . . . . Melee Attacks . | . . . . . Impact . | . . . . . Slashing . | . . . . . Piercing . | . . . . . Sneak Attacks . | . . . . . Combat Hostiles . | . . . . . Follow-up Attacks . | . . . . . Damage Inflicted 1415 | 24 1249 142 . . Guns 1206 | 24 1040 142 . . Cannons . | . . . . . Explosions 209 | . 209 . . . Melee . | . . . . . Ramming . | . . . . . Kinetic . | . . . . . Thermal 474 | 24 450 . . . Explosive . | . . . . . Electromagnetic 941 | . 799 142 . . Impact . | . . . . . Slashing . | . . . . . Piercing . | . . . . . Highest Corruption . | . . . . . Average Corruption . | . . . . . Corruption Purged . | . . . . . Overload Shots . | . . . . . Overflow Damage 9 | . 9 . . . Projectiles . | . . . . . Explosions 9 | . 9 . . . Melee . | . . . . . Knockbacks . | . . . . . Impact . | . . . . . Kinetic . | . . . . . Secondary . | . . . . . Self-Inflicted Damage 80 | . 80 . . . Shots 3 | . 3 . . . Rammed . | . . . . . Targets Rammed . | . . . . . Kicked . | . . . . . Crushed . | . . . . . Highest Temperature 273 | 39 273 177 . . Average Temperature 57 | 24 56 67 . . Received Heat Transfer 162 | . 135 27 . . Siege Activations . | . . . . . Robots Corrupted 1 | . 1 . . . Combat Hostiles 1 | . 1 . . . Parts Fried 3 | . 3 . . . Impact Corruptions . | . . . . . Robots Melted . | . . . . . Combat Hostiles . | . . . . . Parts Melted 1 | . 1 . . . Heat Transferred 977 | 74 903 . . . Parts Sabotaged . | . . . . . Parts Stolen . | . . . . . Parts Stripped . | . . . . . Power Chain Reactions 4 | . 4 . . . Missiles Intercepted . | . . . . . Alert | -11 -10 -10 -10 -9 ------- Run | Scr Mat Min Exi Min Peak Influence 450 | 5 450 209 . . Initial 139 | . 3 139 . . Average 176 | 1 239 109 . . Maximum Alert Level 2 | . 2 1 . . Low Security (%) 58 | 100 42 76 . 100 Level 1 38 | . 51 23 . . Level 2 3 | . 5 . . . Level 3 . | . . . . . Level 4 . | . . . . . Level 5 . | . . . . . High Security . | . . . . . Max Security . | . . . . . Squads Dispatched 5 | . 5 . . . Investigation 3 | . 3 . . . Extermination . | . . . . . Reinforcement 2 | . 2 . . . Assault . | . . . . . Garrison . | . . . . . Intercept . | . . . . . Construction Impeded . | . . . . . Haulers Reinforced . | . . . . . Stealth | -11 -10 -10 -10 -9 --------- Run | Scr Mat Min Exi Min Distress Signals 5 | . 5 . . . Communications Jammed . | . . . . . Distress Signals . | . . . . . Times Spotted 47 | . 42 2 . 3 Peak Tracking Total 6 | . 6 2 . 3 Tactical Retreats 10 | . 10 . . . Traps | -11 -10 -10 -10 -9 ------- Run | Scr Mat Min Exi Min Traps Triggered 2 | . 2 . . . Indirectly . | . . . . . Trap Hack Attempts . | . . . . . Triggered . | . . . . . Disarmed . | . . . . . Reprogrammed 6 | . 6 . . . Reused 1 | . 1 . . . Traps Extracted . | . . . . . Installed . | . . . . . Triggered 1 | . 1 . . . Machines | -11 -10 -10 -10 -9 ---------- Run | Scr Mat Min Exi Min Machines Disabled 2 | . 2 . . . Max in Single Turn 1 | . 1 . . . Machines Sabotaged . | . . . . . Garrisons Compromised . | . . . . . Overloaded Fab Kills . | . . . . . Fab Network Shutdowns . | . . . . . Hacking | -11 -10 -10 -10 -9 --------- Run | Scr Mat Min Exi Min Machines Accessed 13 | . 8 . 4 1 Terminals 6 | . 6 . . . Fabricators . | . . . . . Repair Stations 1 | . 1 . . . Recycling Units 1 | . 1 . . . Scanalyzers . | . . . . . Garrison Access . | . . . . . Total Hacks 32 | . 27 . 4 1 Successful 19 | . 14 . 4 1 Failed 12 | . 12 . . . Catastrophic 2 | . 2 . . . Database Lockouts 1 | . 1 . . . Manual 19 | . 17 . 2 . Terminals 19 | . 19 . . . Fabricators . | . . . . . Repair Stations 6 | . 6 . . . Recycling Units 2 | . 2 . . . Scanalyzers . | . . . . . Garrison Access . | . . . . . Terminal Hacks 10 | . 5 . 4 1 Record 4 | . . . 4 . Robot Analysis 2 | . 2 . . . Open Door 1 | . . . . 1 Locate Traps 1 | . 1 . . . Reprogram Traps 1 | . 1 . . . Recall Investigation 1 | . 1 . . . Fabricator Hacks . | . . . . . Repair Station Hacks 5 | . 5 . . . Scan Component 2 | . 2 . . . Repair 2 | . 2 . . . Refit 1 | . 1 . . . Recycling Unit Hacks 1 | . 1 . . . Retrieve Components 1 | . 1 . . . Scanalyzer . | . . . . . Garrison Access Hacks . | . . . . . Unauthorized Hacks 3 | . 3 . . . Terminals 3 | . 3 . . . Track 2 | . 2 . . . Botnet 1 | . 1 . . . Fabricators . | . . . . . Repair Stations . | . . . . . Recycling Units . | . . . . . Scanalyzers . | . . . . . Garrison Access . | . . . . . Data Cores Recovered . | . . . . . Used . | . . . . . Hacking Detections 8 | . 8 . . . Full Trace Events 2 | . 2 . . . Feedback Events . | . . . . . Feedback Blocked . | . . . . . Robot Schematics Acquired . | . . . . . Robots Built . | . . . . . Matter . | . . . . . Time . | . . . . . Total Robot Build Rating . | . . . . . Part Schematics Acquired . | . . . . . Parts Built . | . . . . . Matter . | . . . . . Time . | . . . . . Total Part Build Rating . | . . . . . Parts Repaired 2 | . 2 . . . Time 52 | . 52 . . . Parts Recycled . | . . . . . Recycled Matter . | . . . . . Retrieved Matter . | . . . . . Retrieved Components 10 | . 10 . . . Parts Scanalyzed . | . . . . . Part Schematics Acquired . | . . . . . Parts Damaged . | . . . . . Bothacking | -11 -10 -10 -10 -9 ------------ Run | Scr Mat Min Exi Min Used RIF Installer . | . . . . . Robots Hacked . | . . . . . Non-combat . | . . . . . Combat . | . . . . . Robot Hacks Applied . | . . . . . Relay Couplers Released . | . . . . . Robots Rewired . | . . . . . Allies Hacked . | . . . . . Hacks Repelled . | . . . . . Allies | -11 -10 -10 -10 -9 -------- Run | Scr Mat Min Exi Min Total Allies . | . . . . . Largest Group . | . . . . . Highest-Rated Group . | . . . . . Highest-Rated Ally . | . . . . . Total Orders . | . . . . . Ally Attacks . | . . . . . Total Damage . | . . . . . Kills . | . . . . . Allies Corrupted . | . . . . . Allies Melted . | . . . . . Intel | -11 -10 -10 -10 -9 ------- Run | Scr Mat Min Exi Min Robot Analysis Total 2 | . 2 . . . Derelict Logs Recovered 2 | . . 1 . 1 Drone Launches . | . . . . . Drone Recoveries . | . . . . . Exploration | -11 -10 -10 -10 -9 ------------- Run | Scr Mat Min Exi Min Turns Passed 3124 | 73 1487 625 712 227 Spaces Moved 2206 | 51 955 477 552 171 Core 16 | 16 . . . . Treads . | . . . . . Legs . | . . . . . Wheels 2190 | 35 955 477 552 171 Hover . | . . . . . Flight . | . . . . . Fastest Speed 50 | 50 90 120 120 130 Average Speed 116 | 100 107 120 128 130 Slowest Speed 150 | 150 120 120 130 130 Overloaded Moves . | . . . . . Propulsion Burnouts . | . . . . . Robots Hopped . | . . . . . Cave-ins Triggered . | . . . . . Exploration Rate (%) 68 | 3 99 99 90 49 Regions Visited 4 Branch Regions 3 Pre-discovered Areas . | . . . . . Known Exits Taken . | . . . . . Unknown Exits Taken 4 | 1 1 1 1 . Scrap Searched 1 | . . 1 . . Spaces Dug . | . . . . . Terrain Destroyed 13 | . 13 . . . Melee . | . . . . . Projectile . | . . . . . AOE 13 | . 13 . . . Terrain Rammed . | . . . . . Walls Destroyed . | . . . . . Machines Disabled . | . . . . . Actions | -11 -10 -10 -10 -9 --------- Run | Scr Mat Min Exi Min Total 2625 | 68 1311 515 555 176 Wait 260 | 2 230 26 . 2 Move 2202 | 50 954 476 551 171 Hop . | . . . . . Pick Up 45 | 7 33 2 2 1 Fast Attach 10 | 6 4 . . . Attach 2 | . 2 . . . Detach . | . . . . . Swap 7 | . 5 1 1 . Drop 31 | 2 24 2 1 2 Fire 68 | 1 59 8 . . Melee . | . . . . . Ram . | . . . . . Kick . | . . . . . Crush . | . . . . . Escape Stasis . | . . . . . Rewire . | . . . . . Trap . | . . . . . Miscellaneous . | . . . . . Route ------- -11/Scrapyard -10/Materials (discovered 4 exits: [*Mat x3] / [*Min]) -10/Mines (discovered 3 exits: [*Mat x2] / *Exi) -10/Exiles -9/Mines History --------- Turn | Location | Event 29 | -11/Scrapyard | Discovered new exit (range 16) 74 | -11/Scrapyard | Entered Materials 159 | -10/Materials | Central database locked down 187 | -10/Materials | Discovered new exit (range 8) 261 | -10/Materials | Repaired Med. Laser 288 | -10/Materials | Repaired Ion Engine 309 | -10/Materials | Build established: Mutant 429 | -10/Materials | Discovered new exit (range 13) 865 | -10/Materials | Discovered new exit (range 16) 1361 | -10/Materials | Discovered new exit (range 15) 1561 | -10/Materials | Entered Mines 1565 | -10/Mines | Discovered new exit (range 8) 1612 | -10/Mines | Learned Materials security intel 1653 | -10/Mines | Discovered new exit (range 13) 1706 | -10/Mines | Deemed a non-threat by the Exiles lab entrance 1706 | -10/Mines | Discovered new exit (range 5) 1812 | -10/Mines | Core integrity fell below 50% 1999 | -10/Mines | Received a Rocket Launcher from a helpful Derelict 2186 | -10/Mines | Entered Exiles 2186 | -10/Exiles | Found Exiles lab abandoned 2883 | -10/Exiles | Discovered new exit (range 14) 2898 | -10/Exiles | Entered Mines 3018 | -9/Mines | Learned Materials terminal intel 3024 | -9/Mines | Found the Drone Emporium 3032 | -9/Mines | Found Prototype Device 3074 | -9/Mines | Assembled infested the area 3125 | -9/Mines | Self-destructed Last Messages --------------- thought you were from the Merchants Guild. I haven't even officially opened my Drone Emporium yet but am totally ready to tell them where they can shove that C&D." 03026_ XJ-G9S(g): "I'm a fan of the free market. Free drones for all! No strings attached!" 03031_ Dropped Grenade Launcher. 03032_ Dropped Rigged Rnf. Deuterium Engine. 03032_ Acquired Prototype Device. 03046_ R-06 Scavenger collects Rigged Rnf. Deuterium Engine. 03074_ ALERT: Infestation in the mines, dispatching Demolisher response squad. 03093_ K-01 Serf collects debris. 03098_ U-05 Engineer destroyed. 03102_ K-01 Serf collects debris. 03117_ T-07 Excavator destroyed. 03123_ as-87074 destroyed. 03124_ C-30 ARC bursts open, deploying its payload. 03124_ D-53 Grenadier unfolds itself. 03124_ EM Shotgun destroyed. 03125_ K-01 Serf destroyed. Map ----- +----------------------------------------------------+ | | | ???????????????????????????????????????????????? | | ???????????????????????????????????????????????? | | ???????????????????????????????????????????????? | | ???????????????????????????????????????????????? | | ???????????????????????????????????????????????? | | ????????????????????????????????????????## ????? | | ???????????????????????????????????????# ?? | | ??????????????????????????????????????? | | ??????????????????????????????????????? | | ??????????????????????????????????????? | | ??????????????????????????????????????# | | ?????????????????????????????????????? # | | ?????????????????????????????????????? #? | | ?????????????????????????????????????? #?? | | ?????????????????????????????????????? ???? | | ???????????????????######?????????????# ????? | | ??????????????????##""""#####???###???# #?????? | | ??????????????????#" "## ??## ##### #?????? | | ??????????????????#" "## #??# #?????? | | ?????????????????### ### #### #?????? | | ?????????????????# ### ## ### #######? | | ????????????????## X # #?# #? | | ????????????????# g # #?# ##### #? | | ???????????????## %d ##?# #???# #? | | ???????????????# %@d ### #??# ##??# #? | | ?????????????### #?## ##??# #??# #? | | ????????????## %## #?## #???# ##?# #? | | ????????????# = ########?# #???# ### #? | | ????????????# =% #????????# #???## ## | | ????????????## #????????## ##????# # | | ?????????????# ##?????????####?????## | | ?????????????# ##????????????????????## | | ?????????????# #??????????????????????## | | ?????????????# ##??????????????????????## | | ?????????????## #???????????????????????## | | ??????????????# #????????????????????????# | | ??????????????## ##????????????????####????## | | ???????????????# #????????????????## ##???## | | ???????????????# #????????????????# ###### | | ???????????????# #????????????????# ## | | ???????????????# #######??????????## """ | | ???????????????# #???????????## """ | | ???????????????# ##### #????????????## """ | | ???????????????# !#??## ######????????# | | ???????????????# %#?## ####?????# | | ???????????????# =#?# #?????## ## # | | ???????????????# #?????######### | | ???????????????# #?????????????? | | ??????????????# #?????????????? | +----------------------------------------------------+ Best States ------------- Heat Dissipation 25 Energy Generation 10 Energy Capacity 250 Matter Stores 300 Matter Capacity 300 Sight Range 16 Terrain Scan Density 10 Evasion (%) 44 Recoil Reduction 1 Item Schematics ----------------- None Robot Schematics ------------------ None Fabricated ------------ Nothing Alien Tech Used ----------------- None Achievements -------------- None Challenges ------------ None Game ------ Seed AerolevAntimissileWand Manual? 0 Play Time 00:27:08 Cumulative 71.3 hours Start 2021.02.14 @ 18:50:55 End 2021.02.14 @ 19:22:20 Sessions 5 Manual Loads 0 Difficulty Rogue Special Mode None Game No. 82 Rogue 82 Adventurer 0 Explorer 0 Win Type - Total 0 Types 0/0/0/0/0/0/0/0/0 Lore% 46 Gallery% 47 Achievement% 37 Wizard Run 0 Options --------- ASCII 1 Keyboard 1 Movement Arrows Keybinds 0 Fullscreen 2 Font 18/SmallcapsGlow Map View 76x50 Tactical HUD 1 Map Filters NONE Filters NONE Steam 1 RUN: 9fb5f97c-0f11-470e-b070-bd2b9b680788